[Event "Italian Women Championship 2023"]
[Site "Brescia"]
[Date "2023.12.03"]
[Round "1.1"]
[White "Rubinshtein, Kamilla"]
[Black "Sedina, Elena"]
[Result "0-1"]
[ECO "C17"]
[WhiteElo "1921"]
[BlackElo "2169"]
[Annotator "RC"]
[PlyCount "64"]
[EventDate "2023.12.03"]
[EventType "tourn"]
[EventCountry "ITA"]
[SourceTitle "playchess.com"]
[Source "ChessBase"]
[SourceQuality "1"]
[TimeControl "40/6000+30:20/3000+30:900+30"]

1. e4 {[%emt 0:00:04]} e6 {[%emt 0:00:40]} 2. d4 {[%emt 0:00:14]} d5 {[%emt 0:00:03]} 3. Nc3 {[%emt 0:00:17]} Bb4 {[%emt 0:00:51]} 4. e5 {[%emt 0:03:16]} c5 {[%emt 0:00:34]} 5. Bd2 {[%emt 0:00:55]} Ne7 {[%emt 0:01:24]} 6. a3 {[%emt 0:00:33]} Bxc3 {[%emt 0:05:22]} 7. Bxc3 {[%emt 0:00:13]} b6 {[%emt 0:08:30]} 8. Nf3 {[%emt 0:07:08]} Qc7 {[%emt 0:16:42]} 9. h4 {[%emt 0:05:18]} Ba6 {[%emt 0:06:05]} 10. Bxa6 {[%emt 0:00:48]} Nxa6 {[%emt 0:00:02]} 11. Qe2 {[%emt 0:00:25]} Nb8 {[%emt 0:00:29]} 12. h5 {[%emt 0:01:54]} h6 {[%emt 0:01:53]} 13. O-O-O {[%emt 0:05:52]} Nbc6 {[%emt 0:06:51]} 14. Rh3 {[%emt 0:15:32]} c4 {[%emt 0:11:19]} 15. Nh4 {[%emt 0:12:14]} b5 {[%emt 0:06:26]} 16. Qg4 {[%emt 0:04:54]} Rg8 {[%emt 0:07:19]} 17. f4 {[%emt 0:06:43]} Qd7 {[%emt 0:01:10]} 18. Qf3 {[%emt 0:07:15]} Nf5 {[%emt 0:25:01]} 19. g4 {[%emt 0:16:16]} Nxh4 {[%emt 0:00:03]} 20. Rxh4 {[%emt 0:00:06]} a5 {[%emt 0:00:24]} 21. Be1 {[%emt 0:04:46]} b4 {[%emt 0:01:18]} 22. Rh3 {[%emt 0:05:57]} Qb7 {[%emt 0:03:42]} 23. Qe3 {[%emt 0:02:49]} c3 {[%emt 0:03:49]} 24. b3 {[%emt 0:01:13]} a4 {[%emt 0:01:22]} 25. axb4 {[%emt 0:03:30]} axb3 {[%emt 0:00:20]} 26. Qxc3 {[%emt 0:01:25]} bxc2 {[%emt 0:00:02]} 27. Kxc2 {[%emt 0:02:05]} Nxe5 {[%emt 0:01:25]} 28. Kb1 {[%emt 0:01:07]} Nc4 {[%emt 0:00:13]} 29. Rdd3 {[%emt 0:01:10]} Qa6 {[%emt 0:00:30]} 30. Rh2 {[%emt 0:00:30]} Na3+ {[%emt 0:00:11]} 31. Kb2 {[%emt 0:00:29]} Nb5 {[%emt 0:00:46]} 32. Qb3 {[%emt 0:00:53]} Qa1+ {[%emt 0:00:06]} 0-1

[Event "Italian Women Championship 2023"]
[Site "Brescia"]
[Date "2023.12.03"]
[Round "1.2"]
[White "Cassi, Elisa"]
[Black "Sala, Giulia"]
[Result "1-0"]
[ECO "B27"]
[WhiteElo "1951"]
[BlackElo "2045"]
[Annotator "NA RC"]
[PlyCount "85"]
[EventDate "2023.12.03"]
[EventType "tourn"]
[EventCountry "ITA"]
[SourceTitle "playchess.com"]
[Source "ChessBase"]
[SourceQuality "1"]
[TimeControl "40/6000+30:20/3000+30:900+30"]

1. e4 {[%emt 0:00:06]} c5 {[%emt 0:00:10]} 2. Nf3 {[%emt 0:00:10]} g6 {[%emt 0:00:13]} 3. c3 {[%emt 0:00:12]} Nf6 {[%emt 0:00:28]} 4. e5 {[%emt 0:00:26]} Nd5 {[%emt 0:00:51]} 5. d4 {[%emt 0:00:07]} cxd4 {[%emt 0:01:21]} 6. Qxd4 {[%emt 0:00:19]} e6 {[%emt 0:02:42]} 7. Bc4 {[%emt 0:00:24]} Nc6 {[%emt 0:02:27]} 8. Qe4 {[%emt 0:00:06]} Nce7 {[%emt 0:21:16]} 9. O-O {[%emt 0:14:54]} Bg7 {[%emt 0:00:29]} 10. Bg5 {[%emt 0:01:13]} h6 {[%emt 0:04:42]} 11. Bh4 {[%emt 0:04:17]} Qc7 {[%emt 0:02:16]} 12. Na3 {[%emt 0:06:09]} f5 {[%emt 0:21:07]} 13. exf6 {[%emt 0:07:34]} Nxf6 {[%emt 0:00:11]} 14. Nb5 {[%emt 0:02:20]} Qb8 {[%emt 0:07:09]} 15. Qd3 {[%emt 0:09:42]} a6 {[%emt 0:05:49]} 16. Bg3 {[%emt 0:12:22]} axb5 {[%emt 0:00:14]} 17. Bxb8 {[%emt 0:00:08]} bxc4 {[%emt 0:00:06]} 18. Qd6 {[%emt 0:00:55]} Nf5 {[%emt 0:01:55]} 19. Qc7 {[%emt 0:06:46]} O-O {[%emt 0:01:17]} 20. h3 {[%emt 0:00:35]} d6 {[%emt 0:06:38]} 21. g4 {[%emt 0:09:58]} Nd5 {[%emt 0:01:40]} 22. Qxc4 {[%emt 0:00:18]} Nfe7 {[%emt 0:00:31]} 23. Bxd6 {[%emt 0:01:22]} Rxf3 {[%emt 0:00:19]} 24. Qe4 {[%emt 0:08:23]} Rf7 {[%emt 0:05:06]} 25. Rfd1 {[%emt 0:04:50]} Bd7 {[%emt 0:05:50]} 26. Bxe7 {[%emt 0:02:45]} Rxe7 {[%emt 0:00:23]} 27. Rxd5 {[%emt 0:01:09]} Bc6 {[%emt 0:00:47]} 28. Qb4 {[%emt 0:00:29]} Rf7 {[%emt 0:01:36]} 29. Rd3 {[%emt 0:02:00]} Raf8 {[%emt 0:01:10]} 30. Qc5 {[%emt 0:02:24]} e5 {[%emt 0:01:31]} 31. Rad1 {[%emt 0:01:31]} Bf6 {[%emt 0:00:09]} 32. b4 {[%emt 0:03:25]} Bh4 {[%emt 0:01:26]} 33. R1d2 {[%emt 0:00:36]} e4 {[%emt 0:01:31]} 34. Rd6 {[%emt 0:02:12]} Kh7 {[%emt 0:05:44]} 35. Re6 {[%emt 0:00:15]} Bg5 {[%emt 0:02:08]} 36. Re2 {[%emt 0:04:23]} Rd8 {[%emt 0:01:30]} 37. b5 {[%emt 0:00:42]} Rd5 {[%emt 0:01:01]} 38. Rxc6 {[%emt 0:01:15]} bxc6 {[%emt 0:01:32]} 39. Qxc6 {[%emt 0:00:06]} Rd1+ {[%emt 0:02:07]} 40. Kg2 {[%emt 0:00:05]} e3 {[%emt 0:01:33]} 41. fxe3 {[%emt 0:53:23]} h5 {[%emt 0:50:11]} 42. b6 {[%emt 0:00:00]} h4 {[%emt 0:00:00]} 43. a4 {[%emt 0:01:44]} 1-0

[Event "Italian Women Championship 2023"]
[Site "Brescia"]
[Date "2023.12.03"]
[Round "1.3"]
[White "Brunello, Marina"]
[Black "Martinelli, Valeria"]
[Result "1-0"]
[ECO "C54"]
[WhiteElo "2343"]
[BlackElo "1976"]
[Annotator "RC"]
[PlyCount "97"]
[EventDate "2023.12.03"]
[EventType "tourn"]
[EventCountry "ITA"]
[SourceTitle "playchess.com"]
[Source "ChessBase"]
[SourceQuality "1"]
[TimeControl "40/6000+30:20/3000+30:900+30"]

1. e4 {[%emt 0:00:09]} e5 {[%emt 0:00:05]} 2. Bc4 {[%emt 0:00:12]} Nc6 {[%emt 0:01:26]} 3. Nf3 {[%emt 0:00:14]} Bc5 {[%emt 0:00:14]} 4. d3 {[%emt 0:00:28]} Nf6 {[%emt 0:00:30]} 5. c3 {[%emt 0:00:11]} d6 {[%emt 0:00:15]} 6. Bb3 {[%emt 0:00:16]} a5 {[%emt 0:06:06]} 7. h3 {[%emt 0:07:36]} h6 {[%emt 0:01:08]} 8. Nbd2 {[%emt 0:00:15]} Ba7 {[%emt 0:03:09]} 9. Nf1 {[%emt 0:02:30]} Ne7 {[%emt 0:15:37]} 10. Ng3 {[%emt 0:05:16]} Bd7 {[%emt 0:21:17]} 11. O-O {[%emt 0:05:57]} g5 {[%emt 0:08:49]} 12. Be3 {[%emt 0:07:25]} Ng6 {[%emt 0:05:25]} 13. Bxa7 {[%emt 0:09:15]} Rxa7 {[%emt 0:00:21]} 14. d4 {[%emt 0:00:05]} O-O {[%emt 0:05:43]} 15. Nf5 {[%emt 0:14:16]} Nxe4 {[%emt 0:06:41]} 16. Nxh6+ {[%emt 0:02:46]} Kg7 {[%emt 0:00:13]} 17. Nxf7 {[%emt 0:00:57]} Rxf7 {[%emt 0:04:28]} 18. Bxf7 {[%emt 0:00:07]} Kxf7 {[%emt 0:01:11]} 19. Re1 {[%emt 0:06:07]} d5 {[%emt 0:06:56]} 20. dxe5 {[%emt 0:11:01]} c6 {[%emt 0:00:16]} 21. c4 {[%emt 0:00:20]} Bf5 {[%emt 0:01:53]} 22. Nd4 {[%emt 0:09:01]} Qb6 {[%emt 0:04:40]} 23. cxd5 {[%emt 0:02:37]} cxd5 {[%emt 0:04:35]} 24. Nxf5 {[%emt 0:04:35]} Qxf2+ {[%emt 0:02:30]} 25. Kh1 {[%emt 0:00:21]} Nf4 {[%emt 0:02:11]} 26. Qf3 {[%emt 0:00:38]} Qxf3 {[%emt 0:04:13]} 27. gxf3 {[%emt 0:00:08]} Nf2+ {[%emt 0:00:41]} 28. Kh2 {[%emt 0:01:38]} Ra8 {[%emt 0:00:23]} 29. Rac1 {[%emt 0:04:42]} Ne6 {[%emt 0:03:04]} 30. Rc2 {[%emt 0:02:38]} Nd3 {[%emt 0:00:15]} 31. Re3 {[%emt 0:01:34]} Ndf4 {[%emt 0:00:04]} 32. Nd6+ {[%emt 0:00:37]} Kg6 {[%emt 0:00:41]} 33. Rc8 {[%emt 0:00:49]} d4 {[%emt 0:00:48]} 34. Re1 {[%emt 0:01:42]} Rxc8 {[%emt 0:01:02]} 35. Nxc8 {[%emt 0:00:06]} Nd3 {[%emt 0:00:30]} 36. Re2 {[%emt 0:01:40]} Ndf4 {[%emt 0:00:03]} 37. Rd2 {[%emt 0:00:55]} Kf5 {[%emt 0:00:05]} 38. Nd6+ {[%emt 0:00:30]} Kxe5 {[%emt 0:00:05]} 39. Nc4+ {[%emt 0:00:27]} Kd5 {[%emt 0:00:27]} 40. Nxa5 {[%emt 0:00:10]} b6 {[%emt 0:01:21]} 41. Nb3 {[%emt 0:50:09]} d3 {[%emt 0:50:57]} 42. Kg3 {[%emt 0:03:18]} Nc5 {[%emt 0:00:00]} 43. Nxc5 {[%emt 0:00:00]} Kxc5 {[%emt 0:00:00]} 44. h4 {[%emt 0:00:00]} Kd4 {[%emt 0:00:00]} 45. hxg5 {[%emt 0:00:00]} Ke3 {[%emt 0:00:00]} 46. Rd1 {[%emt 0:00:00]} Ng6 {[%emt 0:00:00]} 47. Re1+ {[%emt 0:00:00]} Kd4 {[%emt 0:00:00]} 48. Re4+ {[%emt 0:00:00]} Kd5 {[%emt 0:00:00]} 49. Kf2 {[%emt 0:00:00]} 1-0

[Event "Italian Women Championship 2023"]
[Site "Brescia"]
[Date "2023.12.03"]
[Round "1.4"]
[White "Zimina, Olga"]
[Black "Gueci, Tea"]
[Result "1-0"]
[ECO "D30"]
[WhiteElo "2277"]
[BlackElo "2160"]
[Annotator "RC"]
[PlyCount "195"]
[EventDate "2023.12.03"]
[EventType "tourn"]
[EventCountry "ITA"]
[SourceTitle "playchess.com"]
[Source "ChessBase"]
[SourceQuality "1"]
[TimeControl "40/6000+30:20/3000+30:900+30"]

1. Nf3 {[%emt 0:00:49]} d5 {[%emt 0:00:03]} 2. d4 {[%emt 0:00:08]} e6 {[%emt 0:00:08]} 3. c4 {[%emt 0:00:37]} Nd7 {[%emt 0:00:13]} 4. Nbd2 {[%emt 0:00:06]} Ngf6 {[%emt 0:01:20]} 5. g3 {[%emt 0:00:14]} c5 {[%emt 0:03:27]} 6. Bg2 {[%emt 0:00:56]} cxd4 {[%emt 0:04:09]} 7. cxd5 {[%emt 0:05:16]} e5 {[%emt 0:17:54]} 8. O-O {[%emt 0:02:36]} Nxd5 {[%emt 0:11:05]} 9. Nxd4 {[%emt 0:02:41]} N7b6 {[%emt 0:06:12]} 10. N4f3 {[%emt 0:19:20]} Qc7 {[%emt 0:03:09]} 11. Nb3 {[%emt 0:04:40]} f6 {[%emt 0:13:35]} 12. Bd2 {[%emt 0:26:16]} Be6 {[%emt 0:00:59]} 13. Rc1 {[%emt 0:02:15]} Qf7 {[%emt 0:00:53]} 14. Na5 {[%emt 0:01:55]} Rd8 {[%emt 0:05:08]} 15. a3 {[%emt 0:03:48]} Bc8 {[%emt 0:20:56]} 16. Qc2 {[%emt 0:08:57]} Bd6 {[%emt 0:01:18]} 17. Rfd1 {[%emt 0:03:46]} O-O {[%emt 0:01:47]} 18. e4 {[%emt 0:00:26]} Nc7 {[%emt 0:01:01]} 19. Be3 {[%emt 0:00:11]} Ne6 {[%emt 0:01:37]} 20. Bf1 {[%emt 0:00:44]} f5 {[%emt 0:03:57]} 21. exf5 {[%emt 0:01:43]} Nd4 {[%emt 0:00:21]} 22. Nxd4 {[%emt 0:09:53]} exd4 {[%emt 0:00:04]} 23. Rxd4 {[%emt 0:02:01]} Bxf5 {[%emt 0:00:59]} 24. Qd2 {[%emt 0:02:37]} Bc7 {[%emt 0:01:15]} 25. Bg2 {[%emt 0:03:59]} Rb8 {[%emt 0:04:10]} 26. Bf4 {[%emt 0:03:42]} Bxf4 {[%emt 0:00:31]} 27. Qxf4 {[%emt 0:00:23]} Qe7 {[%emt 0:01:47]} 28. Qd2 {[%emt 0:00:56]} h6 {[%emt 0:01:56]} 29. h4 {[%emt 0:00:33]} Rf7 {[%emt 0:03:42]} 30. Re1 {[%emt 0:00:15]} Qc7 {[%emt 0:00:47]} 31. Qf4 {[%emt 0:00:22]} Qxf4 {[%emt 0:01:04]} 32. Rxf4 {[%emt 0:00:05]} Bg6 {[%emt 0:00:20]} 33. Rxf7 {[%emt 0:01:03]} Bxf7 {[%emt 0:00:03]} 34. Re7 {[%emt 0:03:07]} Rc8 {[%emt 0:00:13]} 35. Re2 {[%emt 0:00:32]} Rc1+ {[%emt 0:01:04]} 36. Kh2 {[%emt 0:00:01]} Nc4 {[%emt 0:00:19]} 37. Nxc4 {[%emt 0:01:25]} Bxc4 {[%emt 0:00:10]} 38. Re7 {[%emt 0:00:34]} b5 {[%emt 0:01:19]} 39. Rc7 {[%emt 0:00:36]} Rd1 {[%emt 0:00:29]} 40. a4 {[%emt 0:00:23]} a6 {[%emt 0:00:25]} 41. Bb7 {[%emt 0:14:43]} Rd2 {[%emt 0:02:53]} 42. Bxa6 {[%emt 0:02:34]} Rxf2+ {[%emt 0:14:38]} 43. Kg1 {[%emt 0:00:11]} Rxb2 {[%emt 0:00:22]} 44. Rc5 {[%emt 0:03:20]} Rb1+ {[%emt 0:02:07]} 45. Kf2 {[%emt 0:00:06]} Rb2+ {[%emt 0:02:16]} 46. Ke1 {[%emt 0:00:14]} Re2+ {[%emt 0:05:00]} 47. Kd1 {[%emt 0:00:23]} Rg2 {[%emt 0:01:08]} 48. axb5 {[%emt 0:00:31]} Bxb5 {[%emt 0:01:46]} 49. Bxb5 {[%emt 0:01:38]} Rxg3 {[%emt 0:00:26]} 50. Rc8+ {[%emt 0:04:36]} Kh7 {[%emt 0:01:09]} 51. Be2 {[%emt 0:02:46]} g6 {[%emt 0:01:08]} 52. Rc7+ {[%emt 0:00:29]} Kh8 {[%emt 0:01:11]} 53. Ke1 {[%emt 0:00:05]} Rh3 {[%emt 0:01:43]} 54. Rc4 {[%emt 0:00:05]} Rh2 {[%emt 0:02:05]} 55. Kf1 {[%emt 0:00:23]} Kg7 {[%emt 0:01:46]} 56. Bf3 {[%emt 0:00:51]} Rb2 {[%emt 0:00:51]} 57. Be2 {[%emt 0:00:14]} Rb6 {[%emt 0:01:02]} 58. Kf2 {[%emt 0:00:19]} h5 {[%emt 0:01:32]} 59. Kg3 {[%emt 0:01:54]} Rf6 {[%emt 0:03:35]} 60. Bd3 {[%emt 0:00:54]} Kh6 {[%emt 0:00:53]} 61. Rc5 {[%emt 0:16:59]} Rd6 {[%emt 0:16:54]} 62. Be4 {[%emt 0:00:08]} Rf6 {[%emt 0:00:47]} 63. Rg5 {[%emt 0:00:36]} Kg7 {[%emt 0:00:29]} 64. Re5 {[%emt 0:00:35]} Kf8 {[%emt 0:01:44]} 65. Bf3 {[%emt 0:00:18]} Rf5 {[%emt 0:01:57]} 66. Re6 {[%emt 0:00:36]} Kg7 {[%emt 0:00:46]} 67. Be4 {[%emt 0:01:00]} Rf6 {[%emt 0:00:12]} 68. Re5 {[%emt 0:00:14]} Kf8 {[%emt 0:00:10]} 69. Ra5 {[%emt 0:00:11]} Kg7 {[%emt 0:00:35]} 70. Ra4 {[%emt 0:00:26]} Kf8 {[%emt 0:03:19]} 71. Bf3 {[%emt 0:00:09]} Kg7 {[%emt 0:00:34]} 72. Kf2 {[%emt 0:00:22]} Kh6 {[%emt 0:01:24]} 73. Ra5 {[%emt 0:00:28]} Rf4 {[%emt 0:01:23]} 74. Kg3 {[%emt 0:00:07]} Rf6 {[%emt 0:00:03]} 75. Ra8 {[%emt 0:01:08]} Re6 {[%emt 0:03:27]} 76. Kf4 {[%emt 0:00:24]} Rf6+ {[%emt 0:00:19]} 77. Ke3 {[%emt 0:00:06]} g5 {[%emt 0:01:23]} 78. Rh8+ {[%emt 0:00:12]} Kg7 {[%emt 0:00:06]} 79. Rxh5 {[%emt 0:00:07]} gxh4 {[%emt 0:00:07]} 80. Rxh4 {[%emt 0:00:38]} Rh6 {[%emt 0:01:23]} 81. Ra4 {[%emt 0:00:08]} Re6+ {[%emt 0:00:45]} 82. Be4 {[%emt 0:00:07]} Re5 {[%emt 0:00:44]} 83. Kd4 {[%emt 0:00:25]} Rg5 {[%emt 0:00:17]} 84. Ra7+ {[%emt 0:00:20]} Kf6 {[%emt 0:00:23]} 85. Bd5 {[%emt 0:00:16]} Rg4+ {[%emt 0:00:58]} 86. Kc5 {[%emt 0:00:09]} Rg7 {[%emt 0:00:00]} 87. Ra1 {[%emt 0:00:00]} Re7 {[%emt 0:00:00]} 88. Kd6 {[%emt 0:00:00]} Re3 {[%emt 0:00:00]} 89. Rf1+ {[%emt 0:00:00]} Kg7 {[%emt 0:00:00]} 90. Be6 {[%emt 0:00:00]} Rg3 {[%emt 0:00:00]} 91. Ke7 {[%emt 0:00:00]} Rg5 {[%emt 0:00:00]} 92. Rf8 {[%emt 0:00:00]} Re5 {[%emt 0:00:00]} 93. Rg8+ {[%emt 0:00:00]} Kh7 {[%emt 0:00:00]} 94. Rg1 {[%emt 0:00:00]} Re3 {[%emt 0:00:15]} 95. Kf6 {[%emt 0:00:00]} Rf3+ {[%emt 0:00:19]} 96. Bf5+ {[%emt 0:00:00]} Kh8 {[%emt 0:00:06]} 97. Rh1+ {[%emt 0:00:00]} Kg8 {[%emt 0:00:04]} 98. Ra1 {[%emt 0:00:00]} 1-0

[Event "Italian Women Championship 2023"]
[Site "Brescia"]
[Date "2023.12.04"]
[Round "2.1"]
[White "Sedina, Elena"]
[Black "Gueci, Tea"]
[Result "1-0"]
[ECO "B12"]
[WhiteElo "2169"]
[BlackElo "2160"]
[Annotator "ChessBase"]
[PlyCount "70"]
[EventDate "2023.12.03"]
[EventType "tourn"]
[EventCountry "ITA"]
[SourceTitle "playchess.com"]
[Source "ChessBase"]
[SourceQuality "1"]
[TimeControl "40/6000+30:20/3000+30:900+30"]

1. e4 {[%emt 0:02:31]} c6 {[%emt 0:00:03]} 2. d4 {[%emt 0:02:11]} d5 {[%emt 0:00:04]} 3. e5 {[%emt 0:05:02]} c5 {[%emt 0:00:08]} 4. Nf3 {[%emt 0:03:14]} cxd4 {[%emt 0:00:06]} 5. Qxd4 {[%emt 0:02:12]} Nc6 {[%emt 0:00:49]} 6. Qf4 {[%emt 0:00:13]} e6 {[%emt 0:03:42]} 7. Bd3 {[%emt 0:01:43]} Qc7 {[%emt 0:04:19]} 8. Nc3 {[%emt 0:06:17]} a6 {[%emt 0:02:37]} 9. O-O {[%emt 0:24:52]} g6 {[%emt 0:27:02]} 10. Re1 {[%emt 0:02:08]} Bg7 {[%emt 0:01:59]} 11. Qg3 {[%emt 0:04:10]} Nge7 {[%emt 0:12:51]} 12. Bg5 {[%emt 0:19:26]} Nb4 {[%emt 0:07:57]} 13. Qf4 {[%emt 0:08:32]} Nxd3 {[%emt 0:08:05]} 14. cxd3 {[%emt 0:00:01]} O-O {[%emt 0:02:40]} 15. Rac1 {[%emt 0:09:18]} Nc6 {[%emt 0:03:26]} 16. Qh4 {[%emt 0:07:41]} Qb6 {[%emt 0:09:14]} 17. b3 {[%emt 0:03:47]} Qb4 {[%emt 0:07:23]} 18. d4 {[%emt 0:01:10]} Re8 {[%emt 0:00:58]} 19. Na4 {[%emt 0:02:43]} Qf8 {[%emt 0:02:37]} 20. Bf6 {[%emt 0:01:12]} Ra7 {[%emt 0:02:20]} 21. Rc3 {[%emt 0:01:24]} b5 {[%emt 0:01:54]} 22. Bxg7 {[%emt 0:00:10]} Qxg7 {[%emt 0:00:42]} 23. Rxc6 {[%emt 0:01:21]} bxa4 {[%emt 0:00:10]} 24. Rec1 {[%emt 0:00:31]} Bd7 {[%emt 0:03:29]} 25. Rc7 {[%emt 0:00:01]} Rxc7 {[%emt 0:02:27]} 26. Rxc7 {[%emt 0:00:01]} Rc8 {[%emt 0:00:01]} 27. Rxc8+ {[%emt 0:01:25]} Bxc8 {[%emt 0:00:04]} 28. Qd8+ {[%emt 0:00:34]} Qf8 {[%emt 0:00:05]} 29. Qxf8+ {[%emt 0:00:15]} Kxf8 {[%emt 0:00:04]} 30. bxa4 {[%emt 0:00:10]} Bd7 {[%emt 0:02:01]} 31. a5 {[%emt 0:00:08]} Bb5 {[%emt 0:00:33]} 32. Ng5 {[%emt 0:01:20]} h6 {[%emt 0:04:02]} 33. Nh7+ {[%emt 0:00:25]} Ke7 {[%emt 0:00:34]} 34. f4 {[%emt 0:00:02]} Bc4 {[%emt 0:02:14]} 35. Nf6 {[%emt 0:00:15]} Bxa2 {[%emt 0:00:00]} 1-0

[Event "Italian Women Championship 2023"]
[Site "Brescia"]
[Date "2023.12.04"]
[Round "2.2"]
[White "Martinelli, Valeria"]
[Black "Zimina, Olga"]
[Result "0-1"]
[ECO "B13"]
[WhiteElo "1976"]
[BlackElo "2277"]
[Annotator "RC"]
[PlyCount "116"]
[EventDate "2023.12.03"]
[EventType "tourn"]
[EventCountry "ITA"]
[SourceTitle "playchess.com"]
[Source "ChessBase"]
[SourceQuality "1"]
[TimeControl "40/6000+30:20/3000+30:900+30"]

1. e4 {[%emt 0:05:19]} c6 {[%emt 0:00:09]} 2. d4 {[%emt 0:00:26]} d5 {[%emt 0:00:05]} 3. exd5 {[%emt 0:00:30]} cxd5 {[%emt 0:00:05]} 4. Bd3 {[%emt 0:00:07]} Nc6 {[%emt 0:00:26]} 5. c3 {[%emt 0:00:27]} Qc7 {[%emt 0:02:35]} 6. Nf3 {[%emt 0:02:51]} Bg4 {[%emt 0:00:22]} 7. Be3 {[%emt 0:01:01]} e6 {[%emt 0:00:12]} 8. Nbd2 {[%emt 0:00:39]} Nf6 {[%emt 0:01:07]} 9. O-O {[%emt 0:03:28]} Bd6 {[%emt 0:00:44]} 10. h3 {[%emt 0:00:30]} Bh5 {[%emt 0:00:06]} 11. Qc2 {[%emt 0:09:26]} Bg6 {[%emt 0:01:10]} 12. Bxg6 {[%emt 0:15:29]} hxg6 {[%emt 0:00:12]} 13. Rfe1 {[%emt 0:00:50]} O-O {[%emt 0:07:14]} 14. Nf1 {[%emt 0:13:47]} b5 {[%emt 0:04:39]} 15. Rac1 {[%emt 0:08:01]} Rfc8 {[%emt 0:00:46]} 16. Ng5 {[%emt 0:09:44]} Ne7 {[%emt 0:04:50]} 17. Qe2 {[%emt 0:04:01]} Qc4 {[%emt 0:00:27]} 18. Bd2 {[%emt 0:13:23]} Qxe2 {[%emt 0:03:27]} 19. Rxe2 {[%emt 0:00:05]} Nc6 {[%emt 0:08:19]} 20. g3 {[%emt 0:04:31]} a5 {[%emt 0:05:01]} 21. Ne3 {[%emt 0:02:09]} b4 {[%emt 0:02:28]} 22. Rf1 {[%emt 0:00:32]} bxc3 {[%emt 0:03:42]} 23. Bxc3 {[%emt 0:00:04]} Bb4 {[%emt 0:00:17]} 24. Rc2 {[%emt 0:07:41]} Bxc3 {[%emt 0:00:42]} 25. bxc3 {[%emt 0:00:07]} Rab8 {[%emt 0:00:02]} 26. Rd1 {[%emt 0:02:42]} a4 {[%emt 0:03:43]} 27. Kf1 {[%emt 0:02:08]} Na5 {[%emt 0:01:22]} 28. Ke2 {[%emt 0:01:02]} Ne8 {[%emt 1:00:18]} 29. f4 {[%emt 0:04:00]} Nd6 {[%emt 0:00:30]} 30. g4 {[%emt 0:00:00]} Re8 {[%emt 0:00:00]} 31. Kd3 {[%emt 0:00:00]} f6 {[%emt 0:00:00]} 32. Nf3 {[%emt 0:00:00]} Rec8 {[%emt 0:00:00]} 33. Nd2 {[%emt 0:00:29]} Nc6 {[%emt 0:00:00]} 34. Rf1 {[%emt 0:00:41]} Kf7 {[%emt 0:00:00]} 35. f5 {[%emt 0:00:39]} Rh8 {[%emt 0:00:00]} 36. fxe6+ {[%emt 0:00:04]} Kxe6 {[%emt 0:00:00]} 37. Rf3 {[%emt 0:00:06]} Rh7 {[%emt 0:00:00]} 38. a3 {[%emt 0:00:15]} Rbh8 {[%emt 0:00:00]} 39. Nxd5 {[%emt 0:00:05]} Kxd5 {[%emt 0:00:00]} 40. c4+ {[%emt 0:00:04]} Ke6 {[%emt 0:00:17]} 41. d5+ {[%emt 0:50:23]} Kd7 {[%emt 0:50:49]} 42. dxc6+ {[%emt 0:00:10]} Kxc6 {[%emt 0:00:03]} 43. c5 {[%emt 0:00:00]} Nb7 {[%emt 0:00:00]} 44. Ne4 {[%emt 0:00:00]} Rxh3 {[%emt 0:00:00]} 45. Rcf2 {[%emt 0:00:00]} Nxc5+ {[%emt 0:00:00]} 46. Nxc5 {[%emt 0:00:00]} Kxc5 {[%emt 0:00:00]} 47. Ke4 {[%emt 0:00:00]} Re8+ {[%emt 0:00:00]} 48. Kf4 {[%emt 0:00:00]} Rxf3+ {[%emt 0:00:00]} 49. Rxf3 {[%emt 0:00:00]} Kd4 {[%emt 0:00:00]} 50. Rf1 {[%emt 0:00:00]} Re4+ {[%emt 0:00:00]} 51. Kg3 {[%emt 0:00:00]} Re3+ {[%emt 0:00:00]} 52. Kh4 {[%emt 0:00:00]} Rxa3 {[%emt 0:00:00]} 53. g5 {[%emt 0:00:00]} Ke5 {[%emt 0:00:00]} 54. Re1+ {[%emt 0:00:00]} Kf5 {[%emt 0:00:00]} 55. Rf1+ {[%emt 0:00:00]} Ke6 {[%emt 0:00:00]} 56. Rf4 {[%emt 0:00:00]} Ra1 {[%emt 0:00:00]} 57. Rb4 {[%emt 0:00:00]} a3 {[%emt 0:00:00]} 58. Rb6+ {[%emt 0:00:00]} Ke5 {[%emt 0:13:21]} 0-1

[Event "Italian Women Championship 2023"]
[Site "Brescia"]
[Date "2023.12.04"]
[Round "2.3"]
[White "Sala, Giulia"]
[Black "Brunello, Marina"]
[Result "0-1"]
[ECO "B90"]
[WhiteElo "2045"]
[BlackElo "2343"]
[Annotator "RC"]
[PlyCount "80"]
[EventDate "2023.12.03"]
[EventType "tourn"]
[EventCountry "ITA"]
[SourceTitle "playchess.com"]
[Source "ChessBase"]
[SourceQuality "1"]
[TimeControl "40/6000+30:20/3000+30:900+30"]

1. e4 {[%emt 0:00:03]} c5 {[%emt 0:02:07]} 2. Nf3 {[%emt 0:00:12]} d6 {[%emt 0:00:20]} 3. d4 {[%emt 0:00:09]} cxd4 {[%emt 0:00:07]} 4. Nxd4 {[%emt 0:00:11]} Nf6 {[%emt 0:00:06]} 5. Nc3 {[%emt 0:00:15]} a6 {[%emt 0:00:04]} 6. Rg1 {[%emt 0:00:26]} h5 {[%emt 0:02:43]} 7. h3 {[%emt 0:00:39]} g6 {[%emt 0:11:53]} 8. Be3 {[%emt 0:09:59]} Bg7 {[%emt 0:04:06]} 9. f4 {[%emt 0:14:09]} Nc6 {[%emt 0:23:04]} 10. Qf3 {[%emt 0:09:36]} Bd7 {[%emt 0:11:13]} 11. O-O-O {[%emt 0:02:02]} Qc8 {[%emt 0:04:16]} 12. Be2 {[%emt 0:20:34]} h4 {[%emt 0:03:13]} 13. Rge1 {[%emt 0:07:14]} Qc7 {[%emt 0:06:39]} 14. Kb1 {[%emt 0:02:58]} Rc8 {[%emt 0:01:13]} 15. Qf2 {[%emt 0:02:14]} Na5 {[%emt 0:12:14]} 16. Ndb5 {[%emt 0:11:45]} axb5 {[%emt 0:02:37]} 17. Bb6 {[%emt 0:00:25]} Nxe4 {[%emt 0:01:30]} 18. Bxc7 {[%emt 0:03:47]} Nxf2 {[%emt 0:00:10]} 19. Bxa5 {[%emt 0:00:37]} Nxd1 {[%emt 0:00:19]} 20. Rxd1 {[%emt 0:00:12]} Bxc3 {[%emt 0:04:52]} 21. Bxc3 {[%emt 0:00:02]} f6 {[%emt 0:00:15]} 22. Bb4 {[%emt 0:02:27]} Kf7 {[%emt 0:00:24]} 23. Rd2 {[%emt 0:01:20]} Bc6 {[%emt 0:00:36]} 24. Bg4 {[%emt 0:00:37]} f5 {[%emt 0:04:07]} 25. Bd1 {[%emt 0:00:11]} Be4 {[%emt 0:00:07]} 26. Kc1 {[%emt 0:00:25]} Rhg8 {[%emt 0:03:06]} 27. Bc3 {[%emt 0:03:24]} g5 {[%emt 0:00:43]} 28. Rf2 {[%emt 0:00:44]} gxf4 {[%emt 0:01:16]} 29. Rxf4 {[%emt 0:00:03]} e5 {[%emt 0:00:52]} 30. Rxh4 {[%emt 0:00:21]} Bxg2 {[%emt 0:01:35]} 31. Rh6 {[%emt 0:00:32]} Ke7 {[%emt 0:02:26]} 32. Bb4 {[%emt 0:02:47]} Rcd8 {[%emt 0:00:16]} 33. h4 {[%emt 0:01:47]} Be4 {[%emt 0:00:45]} 34. Rh7+ {[%emt 0:01:43]} Kf6 {[%emt 0:03:34]} 35. Be2 {[%emt 0:02:46]} f4 {[%emt 0:00:43]} 36. Rh6+ {[%emt 0:00:38]} Rg6 {[%emt 0:00:07]} 37. Rxg6+ {[%emt 0:00:21]} Kxg6 {[%emt 0:00:06]} 38. Bxb5 {[%emt 0:00:09]} Kh5 {[%emt 0:00:22]} 39. Be1 {[%emt 0:00:31]} Rc8 {[%emt 0:00:38]} 40. c3 {[%emt 0:00:23]} Rg8 {[%emt 0:00:25]} 0-1